bitfinex/quotes_BTCUSD_20241216
["timestamp","ask_amount","ask_price","bid_price","bid_amount"]
[1734374738607,0.0001728,107420.0,107410.0,0.27005466]
[1734374739202,0.00074071,107420.0,107410.0,0.27005466]
[1734374739444,0.00074071,107420.0,107400.0,0.0759]
[1734374739716,0.05540667,107430.0,107400.0,0.0759]
[1734374739962,0.25530473,107430.0,107400.0,0.07646791]
[1734374741281,0.2329969,107430.0,107400.0,0.07646791]
[1734374741526,0.2329969,107430.0,107400.0,0.00056791]
[1734374743089,0.14969737,107430.0,107400.0,0.00056791]
[1734374743576,0.0942907,107430.0,107400.0,0.00056791]
[1734374743819,0.17759023,107430.0,107400.0,0.00056791]
[1734374744718,0.2029655,107430.0,107400.0,0.00056791]
[1734374744940,0.08329953,107430.0,107400.0,0.00056791]
[1734374746588,0.08347233,107430.0,107400.0,0.00056791]
[1734374747687,0.0001728,107430.0,107400.0,0.00056791]
[1734374748119,0.11983877,107430.0,107400.0,0.00056791]
[1734374748348,0.1860746,107430.0,107400.0,0.00056791]
[1734374749239,0.2803653,107430.0,107400.0,0.00056791]
[1734374750178,0.14912946,107430.0,107400.0,0.00056791]
[1734374750593,0.17759023,107430.0,107400.0,0.00056791]
[1734374751009,0.08329953,107430.0,107400.0,0.00056791]
[1734374751641,0.21395667,107430.0,107400.0,0.00056791]
[1734374752072,0.2972562,107430.0,107400.0,0.00056791]
[1734374752533,0.29723478,107430.0,107400.0,0.00056791]
[1734374753632,0.42215194,107430.0,107400.0,0.00056791]
[1734374754087,0.20819527,107430.0,107400.0,0.00056791]
[1734374754304,0.08327811,107430.0,107400.0,0.14192257]
[1734374754516,1.08142309,107440.0,107410.0,0.1710907]
[1734374754727,0.01737166,107430.0,107410.0,0.19296296]
[1734374754947,0.74719527,107440.0,107410.0,0.19296296]
[1734374755161,0.0173712,107430.0,107410.0,0.19296296]
[1734374755368,0.78500768,107440.0,107410.0,0.19296296]
[1734374755577,0.78500768,107440.0,107410.0,0.1710907]
[1734374756846,0.24600768,107440.0,107410.0,0.1710907]
[1734374757275,0.24600768,107440.0,107410.0,0.26745466]
[1734374757486,0.12109052,107440.0,107410.0,0.26745466]
[1734374757743,0.12109052,107440.0,107410.0,0.29425692]
[1734374758382,0.0001728,107430.0,107410.0,0.29425692]
[1734374758799,0.0001728,107430.0,107410.0,0.26745466]
[1734374759013,0.0001728,107430.0,107410.0,0.0768]
[1734374759653,0.05626331,107440.0,107410.0,0.0768]
[1734374759859,0.01737638,107430.0,107410.0,0.0768]
[1734374760118,0.18118047,107440.0,107410.0,0.0768]
[1734374760322,0.01737639,107430.0,107410.0,0.08925183]
[1734374760526,0.18118047,107440.0,107410.0,0.08925183]
[1734374760734,0.01737712,107430.0,107410.0,0.08925183]
[1734374760954,0.18118047,107440.0,107410.0,0.0768]
[1734374761208,0.01737713,107430.0,107410.0,0.0768]
[1734374761421,0.16280417,107440.0,107410.0,0.0768]
[1734374761650,0.03781241,107440.0,107410.0,0.0768]
[1734374762070,0.50299262,107450.0,107410.0,0.0768]
[1734374762292,0.01737983,107440.0,107410.0,0.27890649]
[1734374762519,0.59728332,107450.0,107410.0,0.27890649]
[1734374762737,0.01737899,107440.0,107410.0,0.27890649]
[1734374762959,0.59728332,107450.0,107410.0,0.27890649]
[1734374763177,0.01737898,107440.0,107410.0,0.27890649]
[1734374763388,0.50862969,107450.0,107410.0,0.27890649]
[1734374763601,0.0173801,107440.0,107410.0,0.26645466]
[1734374763812,0.54695064,107450.0,107410.0,0.26645466]
[1734374764027,0.0173799,107440.0,107410.0,0.26645466]
[1734374764270,0.13563723,107450.0,107410.0,0.26645466]
[1734374764480,0.01738057,107440.0,107410.0,0.26645466]
[1734374764691,0.03832095,107450.0,107410.0,0.26645466]
[1734374766216,0.15798692,107450.0,107410.0,0.26645466]
[1734374766473,0.28297048,107450.0,107410.0,0.2193907]
[1734374766902,0.28297048,107450.0,107410.0,0.26645466]
[1734374767112,0.28297048,107450.0,107410.0,0.2193907]
[1734374767534,0.54390592,107450.0,107410.0,0.2193907]
[1734374768182,0.63254588,107450.0,107410.0,0.2193907]
[1734374768606,0.1749907,107440.0,107410.0,0.0768]
[1734374768827,0.11966597,107430.0,107400.0,0.00065431]
[1734374769072,0.21395667,107420.0,107400.0,0.00065431]
[1734374769289,0.1749907,107420.0,107400.0,0.00065431]
[1734374769516,0.1749907,107420.0,107410.0,8.64e-05]
[1734374769737,0.0807,107420.0,107410.0,8.64e-05]
[1734374770158,0.33629867,107420.0,107410.0,8.64e-05]
[1734374770586,0.50300331,107420.0,107410.0,8.64e-05]
[1734374770800,0.71695998,107420.0,107410.0,8.64e-05]
[1734374771853,0.63358979,107420.0,107410.0,8.64e-05]
[1734374772320,0.41963312,107420.0,107410.0,8.64e-05]
[1734374772805,0.50303347,107420.0,107410.0,8.64e-05]
[1734374773090,0.73999014,107420.0,107410.0,8.64e-05]
[1734374773296,0.8649706,107420.0,107410.0,8.64e-05]
[1734374773509,0.73994212,107420.0,107410.0,8.64e-05]
[1734374774438,0.62027615,107420.0,107410.0,8.64e-05]
[1734374774648,0.67517426,107420.0,107410.0,8.64e-05]
[1734374775528,0.4225176,107420.0,107410.0,8.64e-05]
[1734374775743,0.29190108,107420.0,107410.0,8.64e-05]
[1734374776166,0.36703889,107420.0,107410.0,8.64e-05]
[1734374776378,0.49215424,107420.0,107410.0,8.64e-05]
[1734374776588,0.20847849,107420.0,107410.0,8.64e-05]
[1734374777050,0.08339033,107420.0,107410.0,8.64e-05]
[1734374777260,0.12026209,107420.0,107410.0,8.64e-05]
[1734374777472,0.35721876,107420.0,107380.0,0.0814864]
[1734374777657,0.43488667,107420.0,107380.0,0.18956051]
[1734374777908,0.2922207,107420.0,107390.0,0.00328063]
[1734374778545,0.2922207,107420.0,107380.0,0.18956051]
[1734374778755,0.53697483,107420.0,107380.0,0.18956051]
[1734374779630,0.35230885,107420.0,107380.0,0.18956051]
[1734374779844,0.0173701,107410.0,107380.0,0.18956051]
[1734374780057,0.40677648,107420.0,107380.0,0.1757771]
[1734374780269,0.01736945,107410.0,107380.0,0.1757771]
[1734374780487,0.40677648,107420.0,107380.0,0.1757771]
[1734374780751,0.11966597,107410.0,107380.0,0.1757771]
[1734374780958,0.52927255,107420.0,107380.0,0.1757771]
[1734374781165,0.01736862,107410.0,107380.0,0.20303985]
[1734374781371,0.52927255,107420.0,107400.0,8.64e-05]
[1734374781591,0.01736668,107410.0,107400.0,8.64e-05]
[1734374781814,0.33691265,107420.0,107400.0,8.64e-05]
[1734374782477,0.01736521,107410.0,107400.0,8.64e-05]
[1734374782685,0.33691265,107420.0,107400.0,8.64e-05]
[1734374783531,0.16552195,107420.0,107400.0,8.64e-05]
[1734374783740,0.16552195,107420.0,107400.0,0.00227256]
[1734374784367,0.16552195,107420.0,107400.0,8.64e-05]
[1734374784580,0.10052194,107420.0,107400.0,8.64e-05]
[1734374785452,0.10336627,107420.0,107400.0,8.64e-05]
[1734374786944,0.21395667,107410.0,107400.0,8.64e-05]
[1734374787165,0.0826,107390.0,107370.0,8.64e-05]
[1734374787385,0.11966597,107380.0,107350.0,0.0805864]
[1734374787597,0.11966597,107380.0,107350.0,0.1748771]
[1734374787807,0.29655667,107390.0,107350.0,0.1748771]
[1734374788017,0.12794476,107380.0,107350.0,0.0705864]
[1734374788300,0.1172907,107380.0,107350.0,0.0705864]
[1734374788793,0.23695667,107380.0,107350.0,0.07115431]
[1734374789189,0.90802911,107390.0,107350.0,0.16544501]
[1734374789435,1.00231981,107390.0,107350.0,0.16544501]
[1734374789685,1.0206654,107390.0,107350.0,0.18669591]
[1734374790515,1.02058444,107390.0,107350.0,0.18669591]
[1734374790721,0.85389925,107390.0,107350.0,0.18669591]
[1734374791142,0.11966597,107380.0,107350.0,0.18669591]
[1734374791562,0.85389925,107390.0,107350.0,0.18669591]
[1734374792534,0.11966597,107380.0,107350.0,0.09240521]
[1734374792746,0.21395667,107380.0,107350.0,0.07115431]
[1734374792959,0.11966597,107370.0,107350.0,0.07115431]
[1734374793163,0.26085667,107380.0,107350.0,0.07115431]
[1734374793388,0.21395667,107370.0,107350.0,0.05781564]
[1734374793602,0.21395667,107370.0,107350.0,0.00065431]
[1734374794231,0.11966597,107360.0,107350.0,0.00065431]
[1734374794438,0.21395667,107360.0,107350.0,0.00065431]
[1734374794664,0.0942907,107360.0,107350.0,0.00065431]
[1734374794896,0.21395667,107360.0,107350.0,0.00065431]
[1734374795111,0.23695667,107360.0,107350.0,0.00065431]
[1734374797070,0.28395667,107360.0,107350.0,0.00065431]
[1734374798572,0.25395667,107360.0,107350.0,0.00065431]
[1734374799593,0.28324736,107360.0,107350.0,0.00065431]
[1734374800558,0.2861834,107360.0,107350.0,0.00065431]
[1734374801162,0.023,107350.0,107320.0,0.081]
[1734374801395,0.023,107350.0,107320.0,0.08116997]
[1734374801396,0.11966597,107340.0,107320.0,0.08116997]
[1734374801641,0.11966597,107340.0,107320.0,0.09392561]
[1734374802249,0.23695667,107350.0,107320.0,0.09392561]
[1734374802457,0.62299246,107360.0,107330.0,0.0999673]
[1734374802679,0.62299246,107360.0,107330.0,0.1833439]
[1734374802680,0.57599246,107360.0,107330.0,0.1833439]
[1734374802886,0.57599246,107360.0,107330.0,0.1719907]
[1734374803095,0.57599246,107360.0,107330.0,0.19972873]
[1734374803568,0.03699246,107360.0,107340.0,0.0890532]
[1734374803772,0.01729427,107370.0,107340.0,0.1719907]
[1734374804000,0.28908496,107380.0,107340.0,0.1719907]
[1734374804202,0.30031246,107380.0,107340.0,0.1719907]
[1734374804417,0.30031246,107380.0,107340.0,0.19666997]
[1734374804625,0.23531245,107380.0,107340.0,0.19666997]
[1734374804890,0.13271118,107380.0,107350.0,0.0499]
[1734374805386,0.13271118,107380.0,107350.0,0.0612532]
[1734374805663,0.03842048,107380.0,107360.0,0.0766]
[1734374805919,0.03842048,107380.0,107360.0,0.09867907]
[1734374806145,0.04126315,107380.0,107360.0,0.09867907]
[1734374806789,0.04183071,107380.0,107360.0,0.09867907]
[1734374807007,0.16149668,107380.0,107360.0,0.0766]
[1734374808683,0.16149668,107380.0,107360.0,0.074343]
[1734374809313,0.04183071,107380.0,107360.0,0.074343]
[1734374810785,0.09649667,107380.0,107350.0,0.0942907]
[1734374811638,1.03190661,107390.0,107350.0,0.1726907]
[1734374811844,0.01732183,107380.0,107350.0,0.17325826]
[1734374812052,1.16479378,107390.0,107350.0,0.17325826]
[1734374812257,0.01732714,107380.0,107350.0,0.17325826]
[1734374812461,0.08299428,107380.0,107350.0,0.17325826]
[1734374812665,0.08299428,107380.0,107350.0,0.19775841]
[1734374814120,0.08299428,107380.0,107350.0,0.17325826]
[1734374814532,0.32715168,107380.0,107350.0,0.17325826]
[1734374815150,0.329964,107380.0,107350.0,0.17325826]
[1734374815579,0.01735314,107370.0,107350.0,0.17325826]
[1734374815783,0.329964,107380.0,107350.0,0.17325826]
[1734374815985,0.01735324,107370.0,107350.0,0.07896756]
[1734374816193,0.329964,107380.0,107350.0,0.07896756]
[1734374816393,0.01736462,107370.0,107350.0,0.07896756]
[1734374816606,0.329964,107380.0,107350.0,0.07896756]
[1734374816817,0.01736462,107370.0,107350.0,0.07896756]
[1734374817034,0.03473286,107370.0,107350.0,0.07896756]
[1734374817236,0.329964,107380.0,107350.0,0.07896756]
[1734374817448,0.01737241,107370.0,107350.0,0.17325826]
[1734374817657,0.08299428,107380.0,107370.0,0.0826]
[1734374817869,0.03876927,107390.0,107370.0,0.24709091]
[1734374818078,0.0001728,107390.0,107380.0,0.24709091]
[1734374818292,0.0001728,107390.0,107380.0,0.3214]
[1734374818499,0.0001728,107420.0,107400.0,0.12766396]
[1734374818767,0.0001728,107420.0,107410.0,0.0942907]
[1734374819175,0.0001728,107420.0,107410.0,0.11212315]
[1734374819614,0.12027569,107440.0,107410.0,0.11212315]
[1734374819826,0.12027569,107440.0,107410.0,0.11229312]
[1734374820234,0.03728141,107440.0,107410.0,0.11229312]
[1734374820443,0.42848584,107450.0,107410.0,0.11229312]
[1734374821280,0.26249727,107450.0,107410.0,0.11229312]
[1734374822306,0.1428313,107450.0,107410.0,0.11229312]
[1734374822532,0.1428313,107450.0,107410.0,0.13158243]
[1734374822935,0.14568208,107450.0,107410.0,0.13158243]
[1734374823347,0.26534805,107450.0,107410.0,0.13158243]
[1734374824199,0.18341676,107450.0,107410.0,0.13158243]
[1734374824429,0.04075826,107450.0,107410.0,0.17748243]
[1734374824636,0.11966597,107440.0,107410.0,0.14036067]
[1734374824847,0.11966597,107430.0,107410.0,0.14036067]
[1734374825058,0.11966597,107440.0,107410.0,0.14036067]
[1734374825465,0.296901,107450.0,107410.0,0.14036067]
[1734374825679,0.296901,107450.0,107410.0,0.16423998]
[1734374827157,0.29971513,107450.0,107410.0,0.16423998]
[1734374828441,0.2167708,107450.0,107410.0,0.16423998]
[1734374829064,0.2167708,107450.0,107410.0,0.04606997]
[1734374829065,0.11966597,107440.0,107410.0,0.04606997]
[1734374829278,0.11966597,107440.0,107410.0,0.00016997]
[1734374829485,0.05466596,107440.0,107410.0,0.00016997]
[1734374829904,0.05466596,107440.0,107410.0,0.00025637]
[1734374831902,0.03631731,107430.0,107380.0,0.00747091]
[1734374832119,0.03631731,107430.0,107390.0,0.0942907]
[1734374834080,0.00017031,107440.0,107390.0,0.0942907]
[1734374834311,0.03631731,107430.0,107390.0,0.0942907]
[1734374834722,0.48940559,107450.0,107390.0,0.0942907]
[1734374834931,0.0371031,107450.0,107400.0,0.1285]
[1734374835178,0.82603699,107460.0,107410.0,0.0942907]
[1734374835386,0.92032769,107460.0,107410.0,0.0942907]
[1734374835600,0.11966597,107440.0,107410.0,0.0942907]
[1734374836439,0.296901,107450.0,107410.0,0.0942907]
[1734374836821,0.00285093,107440.0,107410.0,0.0942907]
[1734374837033,0.00285093,107440.0,107410.0,0.11879938]
[1734374839742,0.15180759,107440.0,107400.0,0.1285]
[1734374839959,0.0942907,107440.0,107400.0,0.2227907]
[1734374841011,0.26295667,107440.0,107400.0,0.2227907]
[1734374841220,0.26295667,107440.0,107400.0,0.0789]
[1734374841221,0.11966597,107420.0,107400.0,0.0789]
[1734374841433,0.21395667,107430.0,107390.0,0.00017031]
[1734374841681,0.30813193,107430.0,107390.0,0.09446101]
[1734374841900,0.30813193,107430.0,107410.0,8.64e-05]
[1734374842132,0.21370346,107430.0,107410.0,8.64e-05]
[1734374842554,0.29664779,107430.0,107410.0,8.64e-05]
[1734374842979,0.29664779,107430.0,107390.0,0.09446101]
[1734374843186,0.01731894,107420.0,107390.0,0.09446101]
[1734374843400,0.3243607,107430.0,107390.0,0.09446101]
[1734374843607,0.47192305,107430.0,107390.0,0.11677711]
[1734374843815,0.0173201,107420.0,107390.0,0.11677711]
[1734374844015,0.5962384,107430.0,107390.0,0.11677711]
[1734374844228,0.01732043,107420.0,107390.0,0.11677711]
[1734374844430,0.43706313,107430.0,107390.0,0.11677711]
[1734374844636,0.01733082,107420.0,107390.0,0.11677711]
[1734374844844,0.43706313,107430.0,107390.0,0.11677711]
[1734374845047,0.01733082,107420.0,107390.0,0.11677711]
[1734374845272,0.43706313,107430.0,107390.0,0.11677711]
[1734374845475,0.01734272,107420.0,107390.0,0.11677711]
[1734374845695,0.43706313,107430.0,107390.0,0.11677711]
[1734374845894,0.0173427,107420.0,107390.0,0.11677711]
[1734374846101,0.69026741,107430.0,107390.0,0.02248641]
[1734374846299,0.13702433,107420.0,107390.0,0.02248641]
[1734374846528,0.11966597,107420.0,107390.0,0.02248641]
[1734374846733,0.69026741,107430.0,107390.0,0.02248641]
[1734374846943,0.01735837,107420.0,107390.0,0.02248641]
[1734374847129,0.01737747,107410.0,107390.0,0.02248641]
[1734374847331,0.23041426,107420.0,107390.0,0.00017031]
[1734374847534,0.01737751,107410.0,107390.0,0.00017031]
[1734374847731,0.32692565,107420.0,107390.0,0.00017031]
[1734374848032,0.0173776,107410.0,107380.0,0.12863336]
[1734374848236,0.3270959,107420.0,107380.0,0.22292406]
[1734374848435,0.01738529,107410.0,107380.0,0.24521647]
[1734374848783,0.42142831,107420.0,107380.0,0.22292406]
[1734374848991,0.01738297,107410.0,107380.0,0.22292406]
[1734374849267,0.42142831,107420.0,107390.0,0.05]
[1734374849486,0.01738036,107410.0,107390.0,0.05]
[1734374849694,0.44556687,107420.0,107390.0,0.05]
[1734374850642,0.44590125,107420.0,107390.0,0.05]
[1734374851570,0.08304104,107410.0,107390.0,0.05]
[1734374854053,0.20271691,107410.0,107390.0,0.05]
[1734374854311,0.32727847,107410.0,107390.0,0.05]
[1734374854517,0.41668348,107400.0,107380.0,8.64e-05]
[1734374854739,0.11967587,107390.0,107380.0,8.64e-05]
[1734374855158,0.41031951,107390.0,107380.0,8.64e-05]
[1734374855391,1.02153689,107390.0,107380.0,8.64e-05]
[1734374855612,0.58108508,107390.0,107380.0,8.64e-05]
[1734374855830,0.92156917,107390.0,107380.0,8.64e-05]
[1734374856038,0.92156917,107390.0,107340.0,0.03606836]
[1734374856039,0.11967587,107370.0,107340.0,0.03606836]
[1734374856240,0.11967587,107370.0,107340.0,0.13035906]
[1734374856241,0.20282953,107370.0,107340.0,0.13035906]
[1734374856454,0.32756002,107370.0,107340.0,0.13035906]
[1734374856719,0.20788415,107360.0,107340.0,0.13035906]
[1734374857378,0.08315366,107360.0,107340.0,0.13035906]
[1734374857584,0.08332378,107360.0,107340.0,0.13035906]
[1734374858429,0.00017012,107360.0,107340.0,0.13035906]
[1734374858653,0.00017012,107360.0,107350.0,0.21396657]
[1734374858865,0.00017012,107360.0,107350.0,0.30083765]
[1734374859067,0.00429912,107360.0,107350.0,0.34586657]
[1734374859272,0.00017012,107360.0,107350.0,0.34586657]
[1734374859483,0.00429912,107360.0,107350.0,0.34586657]
[1734374859696,0.08315366,107390.0,107350.0,0.34586657]
[1734374859908,0.03741915,107390.0,107350.0,0.39298837]
[1734374860110,0.37419147,107400.0,107350.0,0.39298837]
[1734374860313,0.37419147,107400.0,107360.0,0.11967587]
[1734374860486,0.08315366,107400.0,107370.0,0.21396657]
[1734374860731,0.45739147,107410.0,107370.0,0.0942907]
[1734374860967,0.20788415,107410.0,107380.0,0.082]
[1734374861181,0.37691464,107420.0,107380.0,0.082]
[1734374861182,0.37691463,107420.0,107390.0,0.0942907]
[1734374861391,0.33028318,107420.0,107390.0,0.0942907]
[1734374861596,0.11967587,107410.0,107380.0,0.082]
[1734374861815,0.08315366,107410.0,107380.0,0.1762907]
[1734374862021,0.08315366,107410.0,107380.0,0.19605944]
[1734374862445,0.08328605,107410.0,107380.0,0.11405944]
[1734374863187,0.20296192,107410.0,107380.0,0.0942907]
[1734374863392,0.32763538,107410.0,107380.0,0.0942907]
[1734374863752,0.49386667,107410.0,107380.0,0.0942907]
[1734374864725,0.26263537,107410.0,107380.0,0.0942907]
[1734374865460,0.26263537,107410.0,107380.0,0.0932907]
[1734374865665,0.26263537,107410.0,107350.0,0.13963007]
[1734374865938,0.35692607,107410.0,107360.0,0.0942907]
[1734374867068,0.11967587,107400.0,107360.0,0.0942907]
[1734374867271,0.2372502,107410.0,107360.0,0.0942907]
[1734374867272,0.3257079,107410.0,107360.0,0.0942907]
[1734374867482,0.20603203,107410.0,107360.0,0.23735865]
[1734374868333,0.3257079,107410.0,107360.0,0.11768278]
[1734374868782,0.3257079,107410.0,107360.0,0.19578278]
[1734374868990,0.11967587,107400.0,107360.0,0.19578278]
[1734374869192,0.21396657,107400.0,107360.0,0.1723907]
[1734374869414,0.0942907,107400.0,107360.0,0.1723907]
[1734374870250,0.02929069,107400.0,107360.0,0.1723907]
[1734374871245,0.02929069,107400.0,107360.0,0.1442907]
[1734374871246,0.11967587,107390.0,107360.0,0.1442907]
[1734374871904,0.20087587,107390.0,107360.0,0.1442907]
[1734374872113,0.20087587,107390.0,107360.0,0.15871977]
[1734374872938,0.20087587,107390.0,107360.0,0.1442907]
[1734374873359,0.01735356,107380.0,107360.0,0.1442907]
[1734374873532,0.16717587,107380.0,107360.0,0.05]
[1734374874542,0.10217586,107380.0,107360.0,0.05]
[1734374875464,0.11967587,107370.0,107360.0,0.05]
[1734374875678,0.11967587,107380.0,107360.0,0.05]
[1734374876096,0.21385113,107380.0,107360.0,0.05]
[1734374876415,0.29703123,107380.0,107360.0,0.0500864]
[1734374876609,0.20285597,107380.0,107360.0,0.0500864]
[1734374876771,0.20285597,107380.0,107360.0,0.05065396]
[1734374877109,0.0831801,107380.0,107360.0,0.05065396]
[1734374877510,1.10980297,107390.0,107360.0,0.05065396]
[1734374877757,0.01735281,107380.0,107360.0,0.05065396]
[1734374877961,1.20409367,107390.0,107360.0,0.14494466]
[1734374877962,1.02796053,107390.0,107360.0,0.14494466]
[1734374878157,0.01735205,107380.0,107360.0,0.14494466]
[1734374878444,1.12213579,107390.0,107360.0,0.14494466]
[1734374878653,0.01735199,107380.0,107360.0,0.05065396]
[1734374878833,1.33610236,107390.0,107360.0,0.05065396]
[1734374878834,1.16979298,107390.0,107360.0,0.05065396]
[1734374879007,0.01735298,107380.0,107360.0,0.05065396]
[1734374879217,0.95582641,107390.0,107360.0,0.05065396]
[1734374879507,0.01735437,107380.0,107360.0,0.05065396]
[1734374879706,0.90818077,107390.0,107360.0,0.05065396]
[1734374879840,0.81400551,107390.0,107360.0,0.05571936]
[1734374880039,0.19986789,107390.0,107360.0,0.05571936]
[1734374880239,0.31954376,107390.0,107360.0,0.05571936]
[1734374880494,0.44427579,107390.0,107360.0,0.05571936]
[1734374880872,0.31953449,107390.0,107360.0,0.05571936]
[1734374881510,0.11967587,107380.0,107360.0,0.05571936]
[1734374881773,0.11967587,107380.0,107360.0,0.05065396]
[1734374882228,0.11967587,107370.0,107360.0,0.04218892]
[1734374882665,0.19547587,107370.0,107360.0,0.04218892]
[1734374883036,0.2786467,107370.0,107360.0,0.04218892]
[1734374883293,0.3729374,107370.0,107360.0,0.00233615]
[1734374883562,0.49769364,107370.0,107360.0,0.00233615]
[1734374883794,0.67503973,107370.0,107360.0,0.00233615]
[1734374884054,0.8177156,107370.0,107360.0,0.00233615]
[1734374884300,0.74613973,107370.0,107360.0,0.00233615]
[1734374884587,1.70184845,107370.0,107320.0,0.07813537]
[1734374884800,0.11967587,107350.0,107320.0,0.17259648]
[1734374885043,0.20288216,107350.0,107320.0,0.19480477]
[1734374886154,0.38551271,107360.0,107320.0,0.19480477]
[1734374886155,0.21964399,107360.0,107330.0,0.0942907]
[1734374886377,1.21435248,107370.0,107330.0,0.21396657]
[1734374886378,0.54830558,107370.0,107330.0,0.21396657]
[1734374886603,0.64259628,107370.0,107330.0,0.0942907]
[1734374886801,0.54830558,107370.0,107330.0,0.04822412]
[1734374887083,0.48940559,107370.0,107330.0,0.1947414]
[1734374887294,0.48940559,107370.0,107340.0,0.0813]
[1734374887465,0.48940559,107370.0,107340.0,0.1755907]
[1734374887681,0.6974028,107370.0,107340.0,0.1755907]
[1734374888493,0.81707867,107370.0,107340.0,0.1755907]
[1734374888667,0.08319888,107360.0,107340.0,0.1755907]
[1734374889288,0.412609,107370.0,107340.0,0.1755907]
[1734374889536,0.34760899,107370.0,107340.0,0.1755907]
[1734374889740,0.18121122,107370.0,107340.0,0.29526657]
[1734374889944,0.12141149,107370.0,107340.0,0.0942907]
[1734374890145,0.12141149,107370.0,107340.0,0.12302015]
[1734374890347,0.03821402,107370.0,107340.0,0.12302015]
[1734374890777,0.28433749,107380.0,107340.0,0.12302015]
[1734374891335,0.16466162,107380.0,107340.0,0.12302015]
[1734374891551,0.01735001,107370.0,107340.0,0.12302015]
[1734374891873,0.08319747,107380.0,107350.0,0.21396657]
[1734374892078,0.08319747,107380.0,107350.0,0.26276657]
[1734374892312,0.08319747,107390.0,107360.0,0.11967587]
[1734374892624,0.08319747,107390.0,107370.0,0.0942907]
[1734374892826,0.08319747,107390.0,107370.0,0.1751907]
[1734374893231,0.12126037,107390.0,107370.0,0.1751907]
[1734374893364,0.0380629,107390.0,107370.0,0.1751907]
[1734374893568,0.02933334,107390.0,107370.0,0.1751907]
[1734374893773,0.11967587,107380.0,107350.0,0.0488]
[1734374894000,0.11967587,107380.0,107360.0,0.0942907]
[1734374894204,0.11967587,107370.0,107350.0,0.1262]
[1734374894403,0.11967587,107380.0,107350.0,0.2204907]
[1734374894644,0.05467586,107370.0,107350.0,0.2204907]
[1734374895639,0.02255092,107380.0,107350.0,0.1716907]
[1734374895843,0.11967587,107370.0,107330.0,0.1261865]
[1734374896044,0.11967587,107370.0,107340.0,0.0942907]
[1734374897104,0.0942907,107370.0,107310.0,0.17192538]
[1734374897299,0.21396657,107370.0,107310.0,0.17192538]
[1734374897595,0.23536323,107370.0,107310.0,0.18921972]
[1734374897796,0.23547232,107370.0,107310.0,0.11729434]
[1734374898242,0.31497232,107370.0,107310.0,0.11729434]
[1734374898446,0.31497232,107370.0,107310.0,0.06729434]
[1734374898647,0.21407566,107360.0,107310.0,0.01729434]
[1734374899179,0.24557289,107360.0,107310.0,0.01729434]
[1734374899625,0.18057288,107360.0,107350.0,8.65e-05]
[1734374899833,0.14907565,107360.0,107350.0,8.65e-05]
[1734374900039,0.1405907,107360.0,107350.0,8.65e-05]
[1734374900251,0.1405907,107360.0,107310.0,0.01491823]
[1734374901081,0.1405907,107360.0,107320.0,0.03606517]
[1734374901287,0.0463,107360.0,107320.0,0.03606517]
[1734374901510,0.0463,107360.0,107320.0,0.04116351]
[1734374901714,0.26037566,107360.0,107320.0,0.03606517]
[1734374901921,0.19598496,107350.0,107320.0,0.03606517]
[1734374903017,0.0762,107350.0,107320.0,0.03606517]
[1734374903218,0.0762,107350.0,107320.0,0.03623558]
[1734374903429,0.0762,107350.0,107320.0,0.04125779]
[1734374903845,0.0762,107350.0,107320.0,0.03623558]
[1734374904875,0.01119999,107350.0,107320.0,0.03623558]
[1734374909423,0.0463,107360.0,107330.0,0.00093168]
[1734374909635,0.06478639,107370.0,107340.0,0.0942907]
[1734374910308,0.06478639,107370.0,107330.0,0.00093168]
[1734374910309,0.18457135,107370.0,107320.0,0.00017041]
[1734374910575,0.09159422,107370.0,107330.0,0.0942907]
[1734374911616,0.06478639,107370.0,107330.0,0.0942907]
[1734374912037,0.18457135,107370.0,107330.0,0.0942907]
[1734374912248,0.11978496,107360.0,107330.0,0.0942907]
[1734374912459,0.11978496,107360.0,107320.0,0.00017041]
[1734374912665,0.0769,107350.0,107320.0,0.09446111]
[1734374912876,0.08944,107350.0,107320.0,0.09446111]
[1734374913536,0.0769,107350.0,107320.0,0.09446111]
[1734374914567,0.11978496,107340.0,107320.0,0.00017041]
[1734374914789,0.29097566,107350.0,107320.0,0.00017041]
[1734374914993,0.37433295,107350.0,107320.0,0.00017041]
[1734374915200,0.24408496,107340.0,107320.0,0.00017041]
[1734374915404,0.33837566,107340.0,107320.0,0.00017041]
[1734374916232,0.1717907,107340.0,107320.0,0.00017041]
[1734374916445,0.00093183,107330.0,107280.0,0.29114185]
[1734374916661,0.07843183,107340.0,107300.0,0.00017012]
[1734374916891,0.07843183,107340.0,107310.0,0.0942907]
[1734374917957,0.29250749,107340.0,107300.0,0.00017012]
[1734374918178,0.29157566,107340.0,107300.0,0.09446082]
[1734374918373,0.00093183,107330.0,107300.0,0.09446082]
[1734374918615,0.00093183,107330.0,107300.0,0.10400008]
[1734374919551,0.10772252,107340.0,107300.0,0.10400008]
[1734374920640,0.01343182,107340.0,107310.0,0.0942907]
[1734374921389,0.08550081,107350.0,107320.0,0.00093172]
[1734374921592,0.08550081,107350.0,107330.0,0.0942907]
[1734374921772,0.13191864,107370.0,107330.0,0.10381294]
[1734374921982,0.04856135,107370.0,107330.0,0.10381294]
[1734374922191,0.04856135,107370.0,107330.0,0.10474445]
[1734374922584,0.12566135,107370.0,107330.0,0.10474445]
[1734374924686,0.06066134,107370.0,107330.0,0.10474445]
[1734374925065,0.10119489,107370.0,107330.0,0.10474445]
[1734374926575,0.1845983,107370.0,107330.0,0.10474445]
[1734374927331,0.44634228,107370.0,107330.0,0.10381294]
[1734374927534,0.38568521,107370.0,107330.0,0.10381294]
[1734374927714,0.1276,107360.0,107330.0,0.10381294]
[1734374928827,0.1276,107360.0,107330.0,0.10474457]
[1734374929028,0.1200609,107370.0,107330.0,0.15304457]
[1734374929229,0.0377609,107370.0,107340.0,0.0797]
[1734374929435,0.082473,107380.0,107350.0,0.19352202]
[1734374929436,0.000173,107380.0,107350.0,0.19352202]
[1734374929663,0.0823,107400.0,107360.0,0.0797]
[1734374929868,0.0823,107400.0,107370.0,0.0942907]
[1734374930484,0.08286791,107400.0,107370.0,0.0942907]
[1734374931096,0.29694357,107400.0,107350.0,0.0483]
[1734374931295,0.17715861,107400.0,107360.0,0.0942907]
[1734374932058,0.0811,107390.0,107360.0,0.0942907]
[1734374932460,0.29517566,107390.0,107350.0,0.01567745]
[1734374932707,0.34097566,107390.0,107350.0,0.10996815]
[1734374933357,0.0811,107380.0,107350.0,0.10996815]
[1734374933756,0.0811,107380.0,107330.0,0.13542224]
[1734374933968,0.0811,107380.0,107340.0,0.0942907]
[1734374933969,0.1753907,107380.0,107340.0,0.0942907]
[1734374934544,0.11039069,107380.0,107340.0,0.0942907]
[1734374938984,0.11978496,107360.0,107330.0,0.00960864]
[1734374939187,0.0811,107350.0,107330.0,8.64e-05]
[1734374939607,0.01609999,107350.0,107330.0,8.64e-05]
[1734374940285,0.01609999,107350.0,107330.0,0.00025652]
[1734374941805,0.15619069,107350.0,107330.0,0.00025652]
[1734374941980,0.023,107340.0,107330.0,0.00025652]
[1734374944077,0.23707566,107340.0,107330.0,0.00025652]
[1734374944373,0.31347566,107340.0,107330.0,0.00025652]
[1734374944651,0.1936907,107340.0,107330.0,0.00025652]